bitfinex/quotes_ETHUSD_20220109
["timestamp","ask_amount","ask_price","bid_price","bid_amount"]
[1641741378430,0.00515265,3084.4,3084.1,1.04873571]
[1641741378628,0.00515265,3084.4,3083.9,1.08392515]
[1641741378829,0.01283413,3085.0,3083.9,1.08392515]
[1641741378830,0.00458423,3084.3,3083.9,1.08392515]
[1641741379029,1.62659423,3084.3,3083.3,0.463]
[1641741379271,1.62659423,3084.3,3083.0,8.093]
[1641741379272,0.00401581,3084.2,3083.0,8.093]
[1641741379471,1.09298397,3083.4,3083.0,3.5896]
[1641741379674,0.6988,3083.4,3083.1,0.00223685]
[1641741379876,0.6988,3083.4,3082.9,5.1882]
[1641741379877,12.63624732,3083.3,3082.9,5.1882]
[1641741380172,12.63624732,3083.3,3081.8,6.43180602]
[1641741380173,0.81161,3082.8,3081.8,1.67810602]
[1641741380378,0.81161,3082.8,3081.9,5.5058]
[1641741380571,1.11161,3082.8,3082.4,0.00397896]
[1641741380774,0.81166,3082.7,3082.3,0.97502189]
[1641741381073,0.2148,3082.9,3081.7,3.53309559]
[1641741381074,1.62321,3082.9,3081.7,3.53309559]
[1641741381273,1.62321,3082.9,3082.1,1.3216616]
[1641741381476,0.00170527,3082.6,3081.8,0.46584212]
[1641741381681,0.00170527,3082.6,3082.2,1.39621117]
[1641741381873,0.81123,3083.4,3082.2,1.39621117]
[1641741381874,0.00113685,3082.5,3082.4,0.01209991]
[1641741382073,1.89890994,3084.3,3082.5,15.135]
[1641741382074,1.62214,3084.2,3082.5,15.135]
[1641741382274,1.62214,3084.2,3082.5,15.598]
[1641741382476,0.00454739,3083.3,3082.7,0.00484128]
[1641741382676,0.00454739,3083.3,3082.5,15.598]
[1641741382901,0.00397896,3083.2,3082.5,15.598]
[1641741383098,0.00397896,3083.2,3082.6,2.24145314]
[1641741383301,0.00341054,3083.1,3082.6,2.70445314]
[1641741383699,0.00284212,3083.0,3082.6,2.70445314]
[1641741384100,0.08027422,3083.7,3082.6,2.70445314]
[1641741384101,0.00227369,3082.9,3082.6,2.24145314]
[1641741384302,0.00227369,3082.9,3082.6,2.84145314]
[1641741384603,0.00170527,3082.8,3082.6,3.05242314]
[1641741384806,0.08027422,3083.7,3082.8,15.2]
[1641741385003,4.57375535,3085.1,3084.8,1.06645929]
[1641741385202,4.57375535,3085.1,3084.3,0.8714]
[1641741385203,0.08027422,3084.9,3084.3,0.8714]
[1641741385407,0.08027422,3084.9,3084.4,0.93774831]
[1641741385607,0.01136847,3084.8,3084.4,0.93774831]
[1641741385802,0.00792517,3085.1,3084.5,11.4]
[1641741386000,0.00792517,3085.1,3084.5,0.00170527]
[1641741386299,0.00113685,3085.0,3084.9,1.00219377]
[1641741386500,0.00113685,3085.0,3084.9,0.84739149]
[1641741386501,0.08141107,3085.0,3084.9,0.84739149]
[1641741386761,0.08027422,3085.0,3084.9,0.84739149]
[1641741387154,0.08027422,3085.0,3084.5,0.00170527]
[1641741387357,13.65,3084.9,3083.9,1.1629]
[1641741387557,16.26354369,3084.9,3084.0,0.00284212]
[1641741387859,14.65,3084.8,3083.8,3.8127]
[1641741388063,2.43357,3084.5,3084.0,0.85784473]
[1641741388258,2.43357,3084.5,3084.0,0.85955]
[1641741388567,2.43357,3084.5,3084.0,1.17327271]
[1641741388568,3.2449,3084.4,3084.0,1.17327271]
[1641741388758,3.2449,3084.4,3084.1,1.1889765]
[1641741388759,0.81344369,3084.4,3084.1,1.1889765]
[1641741388957,0.00170527,3084.3,3084.1,1.1889765]
[1641741389360,0.00113685,3084.2,3084.1,1.1889765]
[1641741389659,0.00113685,3084.2,3084.1,1.35812681]
[1641741390511,0.00113685,3084.2,3084.1,1.29312681]
[1641741391108,3.20113685,3084.2,3084.1,13.64312681]
[1641741391310,3.20113685,3084.2,3084.1,1.29312681]
[1641741392108,1.62163,3085.4,3084.2,11.15]
[1641741392311,0.08027422,3085.8,3084.2,11.15]
[1641741392613,0.00397896,3084.9,3084.2,11.15]
[1641741392807,0.00397896,3084.9,3084.1,2.01253921]
[1641741393011,0.00341054,3084.8,3084.1,2.0]
[1641741393214,1.63528208,3085.5,3084.1,2.0]
[1641741393215,1.37823804,3084.9,3084.1,2.0]
[1641741393410,2.18913804,3084.9,3084.2,0.00341054]
[1641741393811,2.10886382,3084.9,3084.2,0.00341054]
[1641741394009,2.10886382,3084.9,3084.3,1.00797034]
[1641741394257,2.91995382,3084.9,3084.2,0.00341054]
[1641741394454,15.2,3084.7,3084.1,2.0]
[1641741394652,0.81119,3084.4,3084.1,2.0]
[1641741394853,15.2,3084.2,3084.1,0.00123684]
[1641741395054,13.7,3084.1,3082.7,1.2498]
[1641741395253,0.389,3084.0,3082.7,1.2498]
[1641741395456,1.14786823,3083.6,3082.8,0.00795793]
[1641741395655,15.2,3083.3,3082.4,1.21510602]
[1641741395860,0.389,3083.2,3081.6,1.21510602]
[1641741396057,0.66767363,3083.2,3082.5,0.00170527]
[1641741396255,0.66767363,3083.2,3081.6,1.21510602]
[1641741396256,15.28197949,3083.1,3081.6,1.21510602]
[1641741396557,0.81179,3082.0,3081.7,0.00454739]
[1641741396756,0.81179,3082.0,3081.3,1.61040067]
[1641741396757,10.839,3081.9,3081.3,1.61040067]
[1641741396958,10.839,3081.9,3081.6,2.76467584]
[1641741396959,10.92041107,3081.9,3081.6,2.76467584]
[1641741397154,10.92041107,3081.9,3081.2,4.14567255]
[1641741397155,13.75,3081.8,3081.2,4.14567255]
[1641741397356,3.37920175,3081.7,3081.2,4.14567255]
[1641741397558,0.81199,3081.5,3081.2,2.68367255]
[1641741397758,0.81199,3081.5,3081.2,1.26172081]
[1641741397759,0.389,3081.5,3081.2,1.26172081]
[1641741398018,0.00113685,3081.6,3081.5,9.66444359]
[1641741398215,0.00113685,3081.6,3081.0,0.01299177]
[1641741398812,0.00113685,3081.6,3081.1,1.21201848]
[1641741399214,0.00113685,3081.6,3081.4,1.03759466]
[1641741399812,0.00113685,3081.6,3081.1,1.14815533]
[1641741400016,0.00113685,3081.6,3081.2,4.963]
[1641741400213,0.00170527,3081.5,3081.2,4.963]
[1641741400414,0.80999472,3082.0,3081.2,4.963]
[1641741400714,0.0022737,3081.9,3081.3,0.00113684]
[1641741400915,0.0022737,3081.9,3081.3,1.24182827]
[1641741401115,0.81181,3081.6,3081.3,0.00113684]
[1641741401419,1.11181,3081.6,3081.3,0.00113684]
[1641741401651,2.22379,3081.6,3080.6,1.21510602]
[1641741401853,0.00113684,3081.5,3080.6,1.21510602]
[1641741402052,2.98980549,3081.5,3080.7,0.00341054]
[1641741402253,0.81201,3081.1,3081.0,1.50707923]
[1641741402659,0.81201,3081.1,3081.0,0.00170527]
[1641741402660,1.11201,3081.1,3081.0,0.00170527]
[1641741402954,1.11201,3081.1,3080.6,0.0022737]
[1641741402955,1.2855,3081.1,3080.6,0.0022737]
[1641741403353,0.36577422,3081.1,3080.6,0.0022737]
[1641741403558,1.35210717,3081.0,3080.6,0.0022737]
[1641741403754,1.35210717,3081.0,3080.2,0.03]
[1641741403755,13.5,3080.7,3080.2,0.03]
[1641741403955,0.389,3080.6,3080.2,0.03]
[1641741404155,15.1,3080.5,3079.5,1.21510602]
[1641741404554,15.10113685,3080.5,3079.6,0.00397896]
[1641741404757,1.08291,3080.3,3079.7,1.31210509]
[1641741404956,0.81231,3080.2,3079.7,1.31210509]
[1641741405161,1.11231,3080.2,3079.8,0.00284211]
[1641741405411,1.80131,3080.2,3079.8,0.00284211]
[1641741405598,0.81236,3080.0,3079.8,0.00284211]
[1641741406102,0.00113685,3080.5,3079.8,0.00284211]
[1641741406500,0.00113685,3080.5,3080.4,1.36122795]
[1641741406699,0.00113685,3080.5,3079.8,0.00284211]
[1641741406899,0.81327685,3080.5,3079.8,0.00284211]
[1641741407098,0.81327685,3080.5,3079.7,0.00341054]
[1641741407400,0.81227,3080.4,3079.7,0.00341054]
[1641741407599,0.81327685,3080.5,3079.7,0.00341054]
[1641741407898,0.3,3080.5,3080.2,1.44472346]
[1641741408298,0.3,3080.5,3080.3,0.00113685]
[1641741408498,0.81214,3080.5,3080.3,0.00113685]
[1641741408702,0.81214,3080.5,3079.4,0.00625266]
[1641741408898,2.92063538,3080.4,3079.4,0.00625266]
[1641741409169,1.6246,3080.0,3079.4,0.00625266]
[1641741409370,2.94938175,3079.9,3079.4,0.00625266]
[1641741409570,2.5841,3080.0,3079.2,4.72355266]
[1641741409770,0.0022737,3079.8,3079.2,4.72355266]
[1641741410173,0.00170527,3079.7,3079.2,4.72355266]
[1641741410370,0.00170527,3079.7,3079.3,1.01773817]
[1641741410572,0.00113685,3079.6,3079.4,1.14055353]
[1641741410971,0.81236,3079.5,3079.4,1.14055353]
[1641741411573,1.43828685,3079.7,3079.4,1.14055353]
[1641741411871,1.43828685,3079.7,3079.4,1.14169038]
[1641741412270,1.43828685,3079.7,3079.4,0.00113685]
[1641741412672,1.43828685,3079.7,3079.3,0.00170527]
[1641741412904,0.81236,3079.5,3079.3,0.00170527]
[1641741413198,0.81236,3079.5,3078.9,0.00397897]
[1641741414602,0.81228,3079.8,3079.3,1.11882666]
[1641741415206,0.00170527,3079.9,3079.3,1.11882666]
[1641741415402,0.00170527,3079.9,3079.4,1.12022406]
[1641741415603,1.2997563,3080.6,3079.6,0.01258658]
[1641741415604,0.00113685,3079.8,3079.6,0.01258658]
[1641741416003,1.2997563,3080.6,3079.6,0.01258658]
[1641741416004,0.00511581,3080.5,3079.6,0.01258658]
[1641741416402,0.00454739,3080.4,3079.6,0.01258658]
[1641741416657,0.00454739,3080.4,3079.7,1.47070131]
[1641741416855,0.00397896,3080.3,3079.8,4.8309]
[1641741417257,0.00341054,3080.2,3080.1,12.15262667]
[1641741417454,0.00341054,3080.2,3080.1,1.20262667]
[1641741418953,6.684e-05,3080.6,3080.2,16.63843421]
[1641741419160,1.62469537,3081.2,3080.4,15.2]
[1641741419356,0.00170527,3080.5,3080.4,15.2]
[1641741419959,0.00170527,3080.5,3080.2,1.43843421]
[1641741420418,0.00113685,3080.4,3080.2,1.43843421]
[1641741420802,0.40138913,3081.4,3080.8,1.2165928]
[1641741421004,1.62426,3081.1,3080.8,1.2165928]
[1641741421204,1.62404,3081.1,3080.9,0.0022737]
[1641741421408,15.2,3081.0,3080.0,1.0]
[1641741421605,15.66927422,3081.0,3080.0,1.0]
[1641741421806,15.66927422,3081.0,3080.2,0.00397896]
[1641741421807,0.08027422,3080.9,3080.2,0.00397896]
[1641741422003,11.3,3080.7,3080.0,1.0]
[1641741422205,0.81232,3080.3,3080.0,1.0]
[1641741422406,2.81138094,3080.3,3080.0,1.0]
[1641741422605,0.3,3080.2,3080.0,1.0]
[1641741422810,0.6,3080.2,3079.3,2.45005718]
[1641741423007,0.6,3080.2,3079.2,4.2405]
[1641741423008,2.82631,3080.1,3079.2,4.2405]
[1641741423210,1.62483,3080.0,3079.4,0.00454739]
[1641741423409,1.92483,3080.0,3079.4,0.00454739]
[1641741423609,2.22483,3080.0,3079.4,0.00454739]
[1641741423810,0.81243,3079.8,3079.4,0.00454739]
[1641741424551,1.6249,3079.8,3079.4,0.00454739]
[1641741424854,15.59070527,3079.7,3078.8,0.00341054]
[1641741425152,0.81266,3079.2,3078.7,2.23933921]
[1641741425352,0.389,3079.1,3078.7,2.23933921]
[1641741425551,0.39070527,3079.1,3078.7,2.23933921]
[1641741425751,0.00113685,3079.0,3078.7,2.23933921]
[1641741425951,1.2016626,3078.9,3078.7,2.23933921]
[1641741426152,0.3,3078.8,3078.7,2.23933921]
[1641741426552,0.3,3078.8,3078.4,0.01]
[1641741426553,0.81269,3078.7,3078.4,0.01]
[1641741426752,0.8127,3078.6,3078.4,0.01]
[1641741426959,0.3,3078.7,3078.5,0.00170527]
[1641741427153,0.5985,3078.7,3078.5,0.00170527]
[1641741427355,0.2985,3078.7,3078.5,0.00170527]
[1641741427980,0.2985,3078.7,3078.4,0.01]
[1641741427981,6.5,3078.5,3078.4,0.01]
[1641741428161,1.393,3078.5,3078.4,0.01]
[1641741428361,1.393,3078.5,3077.4,4.0746]
[1641741428362,14.05,3078.4,3077.4,4.0746]
[1641741428562,1.389,3078.3,3077.4,4.0746]
[1641741428763,3.31485,3078.3,3078.1,0.00227369]
[1641741428964,4.91914443,3078.3,3078.1,0.00227369]
[1641741429166,4.91914443,3078.3,3077.6,7.67492979]
[1641741429366,4.91914443,3078.3,3077.6,7.37492979]
[1641741429367,1.5335514,3078.0,3077.6,7.37492979]
[1641741429571,1.00332,3077.8,3077.6,0.87085979]
[1641741429765,1.72002,3077.8,3077.7,0.0022737]
[1641741430168,0.7206414,3078.0,3077.7,0.0022737]
[1641741430367,0.7206414,3078.0,3077.8,1.06455204]
[1641741430767,0.81273,3078.1,3078.0,11.9793586]
[1641741430970,0.00792527,3078.4,3078.0,1.73786086]
[1641741431471,0.00113685,3078.3,3078.1,5.5107]
[1641741431670,0.81380685,3078.3,3078.1,5.5107]
[1641741431866,0.81380685,3078.3,3078.1,5.4607]
[1641741433268,2.76592148,3078.3,3078.1,5.4607]
[1641741433570,2.71592148,3078.3,3078.1,5.4607]
[1641741434168,1.71592148,3078.3,3078.1,5.4607]
[1641741434868,0.81267,3078.3,3078.1,5.4607]
[1641741436804,0.8126,3078.5,3078.1,5.4607]
[1641741437004,0.8126,3078.5,3078.3,1.23140163]
[1641741438005,0.8126,3078.5,3078.1,5.4607]
[1641741438609,1.6253,3078.5,3078.1,5.4607]
[1641741438808,1.625456,3078.4,3078.1,5.4607]
[1641741439007,1.625456,3078.4,3078.2,2.76757066]
[1641741439271,1.625456,3078.4,3078.0,0.2793586]
[1641741439272,12.015,3078.3,3078.0,0.2793586]
[1641741439467,1.20188,3078.2,3078.0,0.2793586]
[1641741439665,1.20188,3078.2,3078.1,0.00113685]
[1641741439666,1.28215422,3078.2,3078.1,0.00113685]
[1641741439869,1.67115422,3078.2,3078.1,0.00113685]
[1641741440072,1.59088,3078.2,3078.1,0.00113685]
[1641741440664,0.59088,3078.2,3078.1,0.00113685]
[1641741440868,2.2166564,3078.2,3078.1,0.00113685]
[1641741441066,0.89088,3078.2,3078.1,0.00113685]
[1641741441765,0.3,3078.2,3078.1,6.75113685]
[1641741441969,2.30290886,3078.3,3078.1,0.00113685]
[1641741442168,4.00639989,3078.6,3078.1,1.23744095]
[1641741442169,1.38089689,3078.6,3078.1,1.23744095]
[1641741442372,1.30062267,3078.6,3078.2,2.49493909]
[1641741442568,0.00113684,3078.5,3078.2,2.49493909]
[1641741443013,0.00113684,3078.5,3078.1,1.23744095]
[1641741443407,0.00113684,3078.5,3078.2,2.48839306]
[1641741444611,1.62577834,3079.2,3079.1,8.93493084]
[1641741444810,1.62577834,3079.2,3079.1,1.33493084]
[1641741445015,1.62577834,3079.2,3078.5,9.15816395]
[1641741445216,1.62577834,3079.2,3078.5,3.00306395]
[1641741445418,0.00341054,3079.1,3078.5,0.00332336]
[1641741445711,0.00341054,3079.1,3078.4,0.01258872]
[1641741445712,0.00284212,3079.0,3078.6,1.4340519]
[1641741446115,0.00227369,3078.9,3078.6,0.13342923]
[1641741446514,0.00170527,3078.8,3078.6,0.13342923]
[1641741446958,0.00113685,3078.7,3078.6,0.13342923]
[1641741447156,43.84845972,3079.1,3078.6,0.13342923]
[1641741447564,1.00170527,3079.0,3078.6,0.13342923]
[1641741448056,0.00113684,3078.9,3078.6,0.13342923]
[1641741448256,0.00113684,3078.9,3078.6,0.08342923]
[1641741448756,0.00113684,3078.9,3078.5,4.7029]
[1641741448757,0.81252,3078.8,3078.5,4.7029]
[1641741448961,2.73444062,3078.7,3078.5,4.7029]
[1641741449157,10.1,3078.6,3078.5,4.7029]
[1641741449360,1.3,3078.6,3078.3,0.00113685]
[1641741449557,0.68027422,3078.6,3078.5,0.00113685]
[1641741449758,0.08027422,3078.5,3078.3,0.0022737]
[1641741450165,0.00113684,3078.9,3078.3,0.0022737]
[1641741450166,0.3,3078.8,3078.3,0.0022737]
[1641741450410,0.00113684,3078.9,3078.3,0.0022737]
[1641741450910,0.8126026,3078.7,3078.3,0.0022737]
[1641741451313,2.30435367,3078.7,3078.3,0.0022737]
[1641741451513,1.1126026,3078.7,3078.3,0.0022737]
[1641741451710,2.1126026,3078.7,3078.0,5.0913323]
[1641741451911,0.81267,3078.4,3078.0,5.0882103]
[1641741452117,0.81267,3078.4,3078.1,0.00113684]
[1641741452515,2.11267,3078.4,3078.1,0.00113684]
[1641741453116,0.81273,3078.3,3078.1,0.00113684]
[1641741453314,0.81267,3078.4,3078.1,0.00113684]
[1641741453514,1.41267,3078.4,3078.1,0.00113684]
[1641741453713,2.41267,3078.4,3078.1,0.00113684]
[1641741453913,2.41267,3078.4,3078.2,1.49104823]
[1641741454364,1.11267,3078.4,3078.3,0.00170527]
[1641741454565,1.0,3078.4,3078.3,11.80250527]
[1641741454767,1.6251786,3078.7,3078.3,0.00250527]
[1641741454768,0.81255,3078.6,3078.3,0.00250527]
[1641741455165,0.81255,3078.6,3078.4,0.00113684]
[1641741455565,1.11255,3078.6,3078.4,0.00113684]
[1641741456166,0.81255,3078.6,3078.4,0.00113684]
[1641741456365,35.1355428,3078.6,3078.4,0.00113684]
[1641741456568,0.8125,3078.8,3078.4,1.26437379]
[1641741456767,0.8125,3078.8,3078.4,1.21437379]
[1641741456967,0.00113684,3078.6,3078.4,1.21437379]
[1641741457167,0.00113684,3078.6,3078.3,0.0008]
[1641741457367,0.81368814,3079.0,3078.3,0.0008]
[1641741457566,0.3,3079.0,3078.7,1.20015738]
[1641741457768,2.43768,3078.8,3078.7,1.20015738]
[1641741458014,2.73768,3078.8,3078.7,1.20015738]
[1641741458209,2.73881685,3078.8,3078.7,1.20015738]
[1641741459211,3.73881685,3078.8,3078.7,1.20015738]
[1641741459414,3.73881685,3078.8,3078.3,0.0008]
[1641741459611,1.62531,3078.5,3078.3,0.0008]
[1641741459811,2.43796,3078.5,3078.3,0.0008]
[1641741460011,2.92531,3078.5,3078.3,0.0008]
[1641741460212,6.1762298,3078.5,3078.3,0.0008]
[1641741460414,0.08027422,3078.4,3078.0,0.2133103]
[1641741460615,0.08027422,3078.4,3077.6,6.02295979]
[1641741460616,15.2,3078.2,3077.6,6.02295979]
[1641741460811,0.81301,3078.0,3077.6,0.87085979]
[1641741461011,1.11301,3078.0,3077.6,0.87085979]
[1641741461213,0.3,3077.9,3077.6,0.87085979]
[1641741461417,1.62607,3077.8,3077.6,0.87085979]
[1641741461674,1.62572,3077.7,3077.6,0.87085979]
[1641741462064,1.62572,3077.7,3077.6,0.87654402]
[1641741462264,1.62572,3077.7,3077.6,2.42574971]
[1641741462765,0.81268,3078.0,3077.9,1.14191277]
[1641741462966,1.11268,3078.0,3077.6,2.42574971]
[1641741463167,0.3,3078.0,3077.9,0.00397896]
[1641741463366,0.3,3078.0,3077.7,0.00511581]
[1641741463564,1.0,3078.1,3077.7,0.00511581]
[1641741463765,2.7381006,3078.2,3077.7,0.00511581]
[1641741463967,2.7381006,3078.2,3078.0,1.23809284]
[1641741463968,0.81262,3078.2,3078.0,1.23809284]
[1641741464166,0.81266,3078.3,3078.0,1.23809284]
[1641741464368,0.81266,3078.3,3078.1,0.00284211]
[1641741464769,2.92587382,3078.5,3078.2,1.36479569]
[1641741464967,0.81256,3078.4,3078.2,1.36479569]
[1641741465166,2.73843382,3078.5,3078.3,0.00170527]
[1641741466012,0.81256,3078.4,3078.3,0.00170527]
[1641741466614,2.11256,3078.4,3078.3,0.00170527]
[1641741466813,2.11256,3078.4,3078.2,0.00227369]
[1641741467118,2.92525,3078.4,3078.2,0.00227369]
[1641741467416,2.92525,3078.4,3078.2,1.55793359]
[1641741467417,3.73794,3078.4,3078.2,1.55793359]
[1641741467814,3.73794,3078.4,3078.3,0.00170527]
[1641741468214,2.11256,3078.4,3078.2,0.00227369]
[1641741468420,3.73792,3078.4,3078.2,0.00227369]
[1641741468915,5.14476834,3078.4,3078.2,0.00227369]
[1641741469361,2.73792,3078.4,3078.2,0.00227369]
[1641741469557,2.68792,3078.4,3078.2,0.00227369]
[1641741470158,2.76819422,3078.4,3078.2,0.00227369]
[1641741470361,2.68792,3078.4,3078.2,0.00227369]
[1641741470560,7.4,3078.2,3078.1,4.9493]
[1641741470762,1.62577,3078.0,3077.7,4.9308]
[1641741470962,2.738657,3078.0,3077.7,4.9308]
[1641741471161,2.738657,3078.0,3077.8,0.00227369]
[1641741471162,0.3,3077.9,3077.8,0.00227369]
[1641741471559,36.49700857,3078.6,3078.1,1.40253638]
[1641741471762,0.81268,3078.3,3078.1,1.40253638]
[1641741471959,0.8127312,3078.1,3077.8,0.00227369]
[1641741472162,0.8127312,3078.1,3077.8,2.77027049]
[1641741472561,0.8127312,3078.1,3077.9,0.00170527]
[1641741473011,1.6255,3078.0,3077.9,0.00170527]
[1641741473212,1.6255,3078.0,3077.7,4.9308]
[1641741473213,2.675,3078.0,3077.7,4.9308]
[1641741473412,1.1129062,3077.9,3077.7,4.9308]
[1641741474515,0.8129,3077.8,3077.7,4.9308]
[1641741474914,0.8129,3077.8,3077.7,4.93193685]
[1641741475316,3.3645562,3077.9,3077.7,4.93193685]
[1641741475915,0.8129,3077.8,3077.7,4.93193685]
[1641741476516,1.4129,3077.8,3077.7,4.93193685]
[1641741476976,1.4129,3077.8,3077.7,6.05638823]
[1641741477876,0.8129,3077.8,3077.7,6.05638823]
[1641741478276,1.4129,3077.8,3077.7,6.05638823]
[1641741478473,1.4129,3077.8,3077.7,4.93193685]
[1641741479479,2.91270763,3077.8,3077.7,4.93193685]
[1641741479677,1.91270763,3077.8,3077.7,4.93193685]
[1641741479976,0.3629,3077.8,3077.7,4.93193685]
[1641741481225,0.9629,3077.8,3077.7,4.93193685]
[1641741481823,0.9629,3077.8,3077.6,0.87085979]
[1641741482024,2.58891,3077.8,3077.6,0.87085979]
[1641741482524,8.4,3077.7,3077.4,4.8434]
[1641741482825,1.11312,3077.6,3077.4,4.8434]
[1641741483022,1.11312,3077.6,3077.3,7.89152024]
[1641741483023,1.11312,3077.6,3077.3,2.32653844]
[1641741483226,1.11312,3077.6,3077.5,0.00113684]
[1641741483626,1.11312,3077.6,3076.8,4.9674]
[1641741483627,2.73931,3077.6,3076.8,4.9674]
[1641741483829,0.76304,3077.3,3076.9,8.27532037]
[1641741484027,1.06304,3077.3,3077.0,0.00284212]
[1641741484463,1.06304,3077.3,3077.1,1.37196625]
[1641741484464,1.87611,3077.3,3077.1,1.37196625]
[1641741484665,2.68912,3077.3,3077.1,1.37196625]
[1641741484863,1.06304,3077.3,3077.2,4.10170527]
[1641741485066,0.76304,3077.3,3077.2,15.05170527]
[1641741485264,1.62556,3078.1,3077.6,1.4036288]
[1641741485464,0.81278,3078.0,3077.6,1.28923763]
[1641741485665,0.81278,3078.0,3077.2,15.05170527]
[1641741485666,0.8128864,3077.6,3077.2,4.10170527]
[1641741485864,0.8128864,3077.6,3077.2,3.10170527]
[1641741486063,0.00170527,3077.5,3077.2,3.10170527]
[1641741486264,0.81293,3077.4,3077.2,3.10170527]
[1641741486467,0.81406684,3077.4,3077.2,4.22096358]
[1641741486665,0.8129883,3077.3,3076.9,9.45522037]
[1641741486868,2.4390683,3077.3,3076.9,8.27532037]
[1641741487064,2.4390683,3077.3,3077.0,0.00113685]
[1641741487265,2.7390683,3077.3,3077.0,0.00113685]
[1641741487464,0.3,3077.2,3077.0,0.00113685]
[1641741487666,1.92604,3077.2,3077.0,0.00113685]
[1641741487907,0.81296,3077.1,3077.0,0.00113685]
[1641741488108,1.92604,3077.2,3077.0,0.00113685]
[1641741488109,1.739,3077.2,3077.0,0.00113685]
[1641741488308,1.113,3077.2,3077.0,0.00113685]
[1641741488510,0.813,3077.2,3077.0,0.00113685]
[1641741489112,0.763,3077.2,3077.1,8.78162887]
[1641741489310,0.763,3077.2,3077.1,1.03162887]
[1641741490110,0.81400684,3077.4,3077.1,1.03162887]
[1641741490310,0.81400684,3077.4,3077.0,0.00113685]
[1641741491116,0.81308,3077.2,3077.0,0.00113685]
[1641741491314,2.4392111,3077.2,3077.0,0.00113685]
[1641741491513,2.4392111,3077.2,3076.9,8.22645722]
[1641741492160,2.4390857,3077.1,3076.9,8.22645722]
[1641741493061,3.4390857,3077.1,3076.9,8.22645722]
[1641741493265,2.4390857,3077.1,3076.9,8.22645722]
[1641741493663,1.62607,3077.1,3076.9,8.22645722]
[1641741494062,0.81305,3077.1,3076.9,8.22645722]
[1641741495063,1.62606,3077.1,3076.9,8.22645722]
[1641741495262,1.91646,3077.1,3076.9,8.22645722]
[1641741495713,0.3,3077.0,3076.9,8.22645722]
[1641741495918,14.09,3077.0,3076.9,1.62006861]
[1641741496114,0.69,3077.0,3076.9,1.62006861]
[1641741496314,1.7858582,3077.0,3076.9,1.62006861]
[1641741496721,1.4858582,3077.0,3076.9,1.62006861]
[1641741496919,0.69,3077.0,3076.9,1.62006861]
[1641741497819,7.1899,3077.0,3076.9,1.62006861]
[1641741498419,6.4899,3077.0,3076.9,0.94409442]
[1641741498619,10.88342933,3076.9,3076.2,8.5446906]
[1641741498820,1.48667933,3076.9,3076.2,8.5446906]
[1641741499021,2.4396447,3076.8,3076.7,0.00170527]
[1641741499267,6.36595863,3076.9,3076.7,0.00170527]
[1641741499268,0.67342933,3076.9,3076.7,0.00170527]
[1641741499668,0.67342933,3076.9,3076.7,1.10897452]
[1641741499867,0.67342933,3076.9,3076.8,1.1633596]
[1641741500067,0.67342933,3076.9,3076.8,1.16449645]
[1641741500967,0.67342933,3076.9,3076.8,5.81449645]
[1641741501169,1.0708062,3077.0,3076.8,5.81449645]
[1641741501370,2.97498338,3078.2,3077.5,19.35968852]
[1641741501572,2.97498338,3078.2,3077.7,15.2]
[1641741501573,2.47498338,3078.2,3077.7,15.2]
[1641741501771,0.16827438,3079.0,3078.6,17.91707674]
[1641741501972,0.16827438,3079.0,3078.7,1.02711198]
[1641741502167,1.95156857,3079.1,3078.8,1.37309246]
[1641741502567,0.01023163,3079.0,3078.8,1.37309246]
[1641741502767,0.01023163,3079.0,3078.9,15.21247737]
[1641741503008,2.0,3079.3,3078.9,15.21247737]
[1641741503211,2.0,3079.3,3078.9,13.26044169]
[1641741503411,0.01136847,3079.2,3078.9,13.26044169]
[1641741503811,0.01080005,3079.1,3078.9,13.26044169]
[1641741504211,0.00783695,3079.6,3079.0,13.23849947]
[1641741504414,0.00783695,3079.6,3079.5,9.33635901]
[1641741504618,0.00783695,3079.6,3078.8,7.21879246]
[1641741504812,0.00783695,3079.6,3078.8,5.91788523]
[1641741505012,0.01307375,3079.5,3078.8,5.91788523]
[1641741505414,2.98184095,3079.4,3078.8,5.91788523]
[1641741505623,0.81245,3079.3,3078.8,0.07218523]
[1641741505816,0.8243869,3079.3,3078.8,0.07218523]
[1641741506018,0.01136847,3079.2,3078.8,0.07218523]
[1641741506417,0.01080005,3079.1,3078.8,0.07218523]
[1641741506673,0.82332005,3079.1,3078.8,0.07218523]
[1641741506864,0.01023163,3079.0,3078.8,0.07218523]
[1641741507266,0.0096632,3078.9,3078.7,4.7425]
[1641741507465,0.0096632,3078.9,3078.6,17.91707674]
[1641741507664,0.902029,3078.8,3078.6,11.41530674]
[1641741507865,1.714749,3078.8,3078.6,11.41530674]
[1641741508071,0.08880058,3078.7,3078.6,11.41530674]
[1641741508265,1.6350846,3078.7,3078.6,11.41530674]
[1641741508466,0.00852636,3078.7,3078.6,11.41530674]
[1641741510266,0.30852636,3078.7,3078.6,11.41530674]
[1641741510515,1.88390636,3078.8,3078.6,11.41530674]
[1641741510716,1.62538,3078.8,3078.6,11.41530674]
[1641741511118,0.81266,3078.8,3078.6,11.41530674]
[1641741512120,0.81266,3078.8,3078.6,12.70520902]
[1641741512314,0.81266,3078.8,3078.6,11.70520902]
[1641741513715,0.81266,3078.8,3078.6,10.41530674]
[1641741514861,0.81266,3078.8,3078.6,11.58330299]
[1641741515164,0.81266,3078.8,3078.6,10.28268032]
[1641741515563,0.81266,3078.8,3078.7,2.35778682]
[1641741515764,1.95093401,3080.1,3078.7,2.35778682]
[1641741515765,0.39,3079.7,3078.7,2.35778682]
[1641741515962,0.39,3079.7,3079.0,1.11233441]
[1641741516160,0.11460323,3079.2,3079.1,7.18236253]
[1641741516362,0.11460323,3079.2,3079.1,8.54014657]
[1641741516562,0.11744534,3079.2,3079.1,8.54014657]
[1641741517161,0.11744534,3079.2,3079.1,8.50985418]
[1641741517361,0.11744534,3079.2,3079.1,8.49504263]
[1641741517561,0.11744534,3079.2,3079.1,8.48711996]
[1641741517768,0.11744534,3079.2,3079.1,8.47612089]
[1641741518009,0.11744534,3079.2,3079.1,6.17074709]
[1641741518212,0.00284211,3079.2,3079.1,3.54397733]
[1641741519412,0.00284211,3079.2,3079.1,5.02285037]
[1641741519611,0.00284211,3079.2,3079.1,3.54397733]
[1641741520616,0.00284211,3079.2,3079.1,4.91092565]
[1641741523763,0.00284211,3079.2,3079.1,12.16092565]
[1641741524165,0.00284211,3079.2,3079.1,4.91092565]